bitfinex/quotes_ETHUSD_20220120
["timestamp","ask_amount","ask_price","bid_price","bid_amount"]
[1642643608591,0.00284211,3113.8,3113.7,1.10095062]
[1642643610033,0.00284211,3113.8,3113.7,1.40095062]
[1642643612334,0.00284211,3113.8,3113.7,1.43999893]
[1642643612539,0.00284211,3113.8,3113.7,1.40095062]
[1642643613782,0.00284211,3113.8,3113.7,1.4398961]
[1642643617185,0.00284211,3113.8,3113.7,1.40095062]
[1642643618735,0.00284211,3113.8,3113.7,1.43136271]
[1642643619336,0.00284211,3113.8,3113.7,3.77183603]
[1642643619536,0.00284211,3113.8,3113.7,1.43136271]
[1642643621182,0.00284211,3113.8,3113.7,1.73136271]
[1642643621386,0.00284211,3113.8,3113.7,4.16291439]
[1642643621785,0.00284211,3113.8,3113.7,3.86291439]
[1642643622186,2.73666636,3114.0,3113.7,3.86291439]
[1642643622387,2.73666636,3113.9,3113.7,1.22925062]
[1642643622588,2.73666636,3113.8,3113.7,1.10095062]
[1642643623790,2.73666636,3113.8,3113.7,1.40095062]
[1642643628682,2.73666636,3113.8,3113.7,1.10095062]
[1642643628882,5.18118456,3113.9,3113.7,1.10095062]
[1642643629081,4.50297402,3113.8,3113.7,1.10004109]
[1642643629482,4.50297402,3113.8,3113.6,0.80414242]
[1642643629684,10.33356623,3113.7,3113.6,0.0010824]
[1642643629884,13.89806884,3113.7,3113.6,0.0010824]
[1642643630083,11.46413992,3113.7,3113.6,0.0010824]
[1642643630682,6.36413992,3113.7,3113.6,0.0010824]
[1642643631288,7.81997128,3113.7,3113.6,0.0010824]
[1642643631483,2.86724005,3113.7,3113.6,0.0010824]
[1642643632443,5.32307141,3113.7,3113.6,0.0010824]
[1642643632638,5.32307141,3113.7,3113.5,1.29042258]
[1642643632639,5.1,3113.6,3113.5,1.29042258]
[1642643632839,5.1,3113.6,3113.5,1.29150498]
[1642643632840,8.63986636,3113.6,3113.5,1.29150498]
[1642643633039,10.27936282,3113.6,3113.5,1.29150498]
[1642643634438,3.54157163,3113.6,3113.5,1.29150498]
[1642643634839,3.54157163,3113.6,3113.5,0.0010824]
[1642643635456,5.17924601,3113.6,3113.5,0.0010824]
[1642643635639,3.54157163,3113.6,3113.5,0.0010824]
[1642643635839,5.17911791,3113.6,3113.5,0.0010824]
[1642643636040,3.54157163,3113.6,3113.5,0.0010824]
[1642643636283,3.54157163,3113.6,3113.5,1.48756228]
[1642643636686,2.73837163,3113.6,3113.5,1.78756228]
[1642643636889,0.00170527,3113.6,3113.5,1.78756226]
[1642643638889,2.73837163,3113.6,3113.5,1.78756224]
[1642643639290,4.37591791,3113.6,3113.5,1.48756224]
[1642643639489,2.86667163,3113.6,3113.5,0.00108236]
[1642643640336,4.3757248,3113.6,3113.5,0.00108236]
[1642643640737,4.3757248,3113.6,3113.5,1.17173055]
[1642643640738,2.73837163,3113.6,3113.5,1.17173055]
[1642643640938,2.73837163,3113.6,3113.5,0.00108236]
[1642643641347,4.3757248,3113.6,3113.5,0.00108236]
[1642643641540,4.5040248,3113.6,3113.5,0.00108236]
[1642643641744,4.3757248,3113.6,3113.5,0.00108236]
[1642643642944,4.5040248,3113.6,3113.5,0.00108236]
[1642643643544,2.86667163,3113.6,3113.5,0.00108236]
[1642643644392,5.1,3113.5,3112.5,0.1283]
[1642643644587,5.1,3113.5,3112.7,0.00108235]
[1642643644588,0.80341,3113.3,3112.7,0.00108235]
[1642643644785,1.63701912,3113.0,3112.7,0.00108235]
[1642643645086,0.1283,3112.9,3112.7,0.00108235]
[1642643645284,2.73666636,3112.8,3112.7,0.00108235]
[1642643645488,1.55239499,3112.8,3112.7,0.00108235]
[1642643645684,4.28906135,3112.8,3112.7,0.0044929]
[1642643646484,3.54010636,3112.8,3112.7,0.0044929]
[1642643647745,4.67056173,3112.8,3112.7,0.0044929]
[1642643647942,3.54010636,3112.8,3112.7,0.0044929]
[1642643648743,3.49010636,3112.8,3112.7,0.0044929]
[1642643649343,4.930979,3112.8,3112.7,0.0044929]
[1642643651291,7.38717404,3112.8,3112.7,0.0044929]
[1642643651493,4.930979,3112.8,3112.7,0.0044929]
[1642643656447,7.39602099,3112.8,3112.7,0.0044929]
[1642643656648,7.42905526,3112.8,3112.7,0.0044929]
[1642643657452,4.930979,3112.8,3112.7,0.0044929]
[1642643660707,7.55699751,3112.8,3112.7,0.0044929]
[1642643660907,9.02299751,3112.8,3112.7,0.0044929]
[1642643661309,6.396979,3112.8,3112.7,0.0044929]
[1642643661708,9.446979,3112.8,3112.7,0.0044929]
[1642643662009,6.396979,3112.8,3112.7,0.0044929]
[1642643662208,5.396979,3112.8,3112.7,0.0044929]
[1642643664042,8.00849493,3112.8,3112.7,0.0044929]
[1642643664541,9.00849493,3112.8,3112.7,0.0044929]
[1642643666384,6.396979,3112.8,3112.7,0.0044929]
[1642643668188,6.231073,3112.8,3112.7,0.0044929]
[1642643668591,8.6965486,3112.8,3112.7,0.0044929]
[1642643668789,6.231073,3112.8,3112.7,0.0044929]
[1642643671248,24.01,3112.7,3111.3,0.01242683]
[1642643671447,24.01,3112.7,3111.3,1.25602683]
[1642643671448,0.80367,3112.3,3111.3,1.25602683]
[1642643671646,0.80367,3112.3,3111.4,0.0073895]
[1642643671647,0.466,3112.2,3111.4,0.0073895]
[1642643671946,1.52898538,3111.5,3111.4,0.0073895]
[1642643672146,2.65142776,3111.5,3111.4,0.0073895]
[1642643672349,3.93102776,3111.5,3111.4,0.0073895]
[1642643672550,3.93102776,3111.5,3111.0,0.00966319]
[1642643672551,0.80386,3111.4,3111.0,0.00966319]
[1642643672753,0.80386,3111.4,3110.7,0.01136846]
[1642643672953,0.466,3111.3,3110.7,0.01136846]
[1642643673150,1.25716084,3110.8,3110.7,0.01136846]
[1642643674787,1.25716084,3110.8,3110.6,0.01193689]
[1642643675186,0.466,3111.3,3110.6,0.01193689]
[1642643675388,1.2434,3111.4,3110.6,0.65499589]
[1642643675587,1.2434,3111.4,3110.6,0.95499589]
[1642643675786,1.2434,3111.4,3110.7,0.01136846]
[1642643676285,2.48222657,3111.4,3110.9,1.4881321]
[1642643676486,1.15544175,3111.2,3110.9,2.1311073]
[1642643676786,1.15544175,3111.2,3111.0,0.00966319]
[1642643677639,1.15544175,3111.2,3111.0,0.65263629]
[1642643678039,1.15544175,3111.2,3111.1,0.00909477]
[1642643679441,2.04257657,3111.4,3111.1,0.00909477]
[1642643680643,1.13748983,3111.3,3111.1,0.00909477]
[1642643680949,0.86568012,3111.4,3111.1,0.00909477]
[1642643681202,0.06193012,3111.4,3111.2,0.1285]
[1642643681599,0.06193012,3111.4,3111.3,3.90795792]
[1642643681799,0.06193012,3111.4,3111.3,0.04252832]
[1642643682001,0.06193012,3111.4,3111.3,0.00795792]
[1642643682402,0.06193012,3111.4,3111.3,1.59258154]
[1642643682605,0.06193012,3111.4,3111.3,0.30795792]
[1642643682806,0.06193012,3111.4,3111.3,0.00795792]
[1642643683006,0.06193012,3111.4,3111.3,0.04011456]
[1642643686644,0.06193012,3111.4,3111.3,0.18149987]
[1642643686846,0.06193012,3111.4,3111.3,0.30309987]
[1642643687043,0.06193012,3111.4,3111.3,0.18149987]
[1642643687245,0.06193012,3111.4,3111.3,0.30309987]
[1642643687442,0.06193012,3111.4,3111.3,2.78149987]
[1642643687844,0.06193012,3111.4,3111.3,4.01877131]
[1642643688445,0.06193012,3111.4,3111.3,1.41877131]
[1642643688701,0.06193012,3111.4,3111.3,1.38661467]
[1642643689100,0.06193012,3111.4,3111.3,1.25811467]
[1642643690401,0.06193012,3111.4,3111.3,1.29569244]
[1642643691408,0.06193012,3111.4,3111.3,1.42419244]
[1642643691802,0.06096008,3111.4,3111.3,1.42419244]
[1642643692006,0.1285,3112.4,3111.5,0.80346]
[1642643692210,3.7365275,3112.8,3111.8,0.80344]
[1642643692211,0.1285,3112.7,3111.8,0.80344]
[1642643692469,2.73753932,3112.6,3111.9,0.1285]
[1642643692666,2.73753932,3112.5,3111.9,0.13304738]
[1642643692866,0.1285,3113.2,3112.0,0.00397896]
[1642643693067,1.3136918,3112.3,3112.0,0.00397896]
[1642643693267,1.3136918,3112.3,3112.0,0.84126721]
[1642643693471,1.3136918,3112.3,3112.1,0.6426641]
[1642643693670,1.3136918,3112.3,3112.2,0.03485855]
[1642643693868,1.3136918,3112.3,3112.2,3.43770066]
[1642643694073,1.3136918,3112.3,3112.2,0.33770066]
[1642643694668,0.00170528,3113.0,3112.2,0.33770066]
[1642643694869,1.10356433,3112.9,3112.4,0.6425928]
[1642643695069,2.73715746,3112.8,3112.4,0.9425928]
[1642643695269,2.73715746,3112.8,3112.5,0.00113684]
[1642643696071,1.38365919,3112.7,3112.5,0.6426039]
[1642643696296,1.38365919,3112.7,3112.6,1.60648]
[1642643696499,1.38365919,3112.7,3112.6,1.90648]
[1642643696701,1.38365919,3112.7,3112.6,0.3]
[1642643696898,1.38365919,3112.7,3112.5,0.00113684]
[1642643697197,1.38365919,3112.7,3112.1,0.80681054]
[1642643697198,0.80343,3112.6,3112.1,0.80681054]
[1642643697397,1.38365919,3112.7,3112.1,0.80681054]
[1642643697597,1.38365919,3112.7,3112.3,0.6427206]
[1642643697998,1.38365919,3112.7,3112.4,0.00170527]
[1642643698199,1.51132345,3112.5,3112.4,0.00170527]
[1642643698598,1.51132345,3112.5,3112.2,0.00284211]
[1642643698798,1.51132345,3112.5,3112.2,0.30284211]
[1642643699201,3.1,3112.4,3112.3,0.00227369]
[1642643699403,5.70514306,3112.4,3112.3,0.00227369]
[1642643699598,5.70514306,3112.4,3112.0,0.00397896]
[1642643699800,0.1285,3112.3,3111.8,0.00511581]
[1642643700053,0.1285,3112.3,3111.6,1.2472]
[1642643700054,1.34961499,3112.2,3111.7,0.00568423]
[1642643700258,0.1285,3112.1,3111.7,0.00568423]
[1642643700456,0.5945,3112.1,3111.7,0.00568423]
[1642643700659,2.63776949,3112.0,3111.2,0.00852635]
[1642643700859,0.1285,3111.9,3111.0,0.00966319]
[1642643701259,0.1285,3111.9,3111.5,0.6428814]
[1642643701459,0.1285,3111.9,3111.5,1.4464614]
[1642643701657,1.1931538,3111.9,3111.6,0.00625265]
[1642643701861,0.466,3112.1,3111.6,0.00625265]
[1642643701862,1.18304188,3111.7,3111.6,0.00625265]
[1642643702060,1.18304188,3111.7,3111.5,0.04641133]
[1642643702461,1.18304188,3111.7,3111.4,0.80357]
[1642643702462,1.18304188,3111.7,3111.6,0.00625265]
[1642643702760,1.18304188,3111.7,3111.5,0.30682108]
[1642643703062,0.1285,3112.1,3111.6,0.64911235]
[1642643703260,0.1285,3112.3,3111.6,0.94911235]
[1642643703462,0.1285,3112.3,3111.7,0.00568423]
[1642643703694,0.93201,3112.3,3111.7,0.00568423]
[1642643703894,1.13449571,3111.9,3111.7,0.00568423]
[1642643704096,6.48451605,3111.8,3111.7,0.00568423]
[1642643704396,6.48451605,3111.8,3111.5,0.00682108]
[1642643704397,0.1285,3111.8,3111.5,0.00682108]
[1642643704595,1.13449571,3111.9,3111.5,0.64965018]
[1642643704997,1.20394409,3111.8,3111.6,0.00625265]
[1642643705197,1.20394409,3111.8,3111.6,0.30625265]
[1642643705398,1.20394409,3111.8,3111.6,0.00625265]
[1642643705601,1.20394409,3111.8,3111.7,0.00568423]
[1642643705803,1.20394409,3111.8,3111.6,0.30625265]
[1642643706108,1.20394409,3111.8,3111.7,0.00568423]
[1642643706904,0.1285,3112.3,3111.8,0.80351]
[1642643707102,0.1285,3112.3,3111.8,0.3]
[1642643707103,0.93201,3112.3,3111.8,0.3]
[1642643707303,0.93201,3112.3,3111.9,0.00454738]
[1642643707552,0.93201,3112.3,3111.9,0.30454738]
[1642643707956,1.49207138,3112.2,3112.0,0.00397896]
[1642643708157,3.7785,3112.1,3112.0,0.00397896]
[1642643708356,0.1285,3112.1,3112.0,0.00397896]
[1642643708756,0.1285,3112.1,3111.9,0.3]
[1642643708757,0.1285,3112.1,3111.9,0.30454738]
[1642643708955,0.1285,3112.1,3112.0,0.00397896]
[1642643709155,2.42409138,3112.2,3112.0,0.00397896]
[1642643711391,2.73787678,3112.1,3112.0,0.00397896]
[1642643716159,2.73787678,3112.1,3112.0,0.00317886]
[1642643717964,1.49207138,3112.2,3112.0,0.00317886]
[1642643718165,1.49207138,3112.2,3112.0,1.44940276]
[1642643718371,2.73782992,3112.1,3112.0,1.44940276]
[1642643718565,2.73782992,3112.1,3112.0,0.80346]
[1642643718801,2.73782992,3112.1,3111.9,1.10346]
[1642643719804,2.73782992,3112.1,3111.9,1.90697]
[1642643732148,2.73782992,3112.1,3111.9,1.10351]
[1642643732551,2.73782992,3112.1,3111.9,0.3]
[1642643732953,2.73782992,3112.1,3111.6,0.3]
[1642643733149,2.73782992,3112.1,3111.5,0.3]
[1642643733150,2.86632992,3112.1,3111.5,0.3]
[1642643733350,2.86632992,3112.1,3111.7,0.00488413]
[1642643733351,2.73782992,3112.0,3111.7,0.00488413]
[1642643733550,0.80362,3111.9,3111.7,0.00488413]
[1642643733797,2.73782992,3111.8,3111.7,0.00488413]
[1642643736111,2.73782992,3111.8,3111.5,0.00602098]
[1642643736308,0.80364,3111.7,3111.5,0.00602098]
[1642643736507,2.73782992,3111.6,3111.5,0.00602098]
[1642643736907,4.16013094,3111.6,3111.5,0.30602098]
[1642643738156,4.15912752,3111.6,3111.5,0.30602098]
[1642643740958,4.15912752,3111.6,3111.5,0.94892358]
[1642643742007,4.15912752,3111.6,3111.5,0.30602098]
[1642643742409,4.15912752,3111.6,3111.5,0.00602098]
[1642643743808,4.15912752,3111.6,3111.5,0.30602098]
[1642643744612,2.7368265,3111.6,3111.5,0.30602098]
[1642643744812,1.39848476,3112.2,3111.5,1.14171658]
[1642643745057,1.39848476,3112.2,3111.7,0.3364652]
[1642643745459,1.39848476,3112.2,3111.8,0.00431571]
[1642643745856,1.39848476,3112.2,3111.8,0.80779571]
[1642643746060,2.20196476,3112.2,3111.8,1.10779571]
[1642643746258,2.20196476,3112.2,3111.9,0.00374728]
[1642643746659,1.50467085,3112.1,3112.0,0.80347]
[1642643747058,1.50467085,3112.1,3112.0,0.80664886]
[1642643747258,1.50467085,3112.1,3112.0,0.00317886]
[1642643748796,0.80356,3112.0,3111.8,0.00431571]
[1642643749400,1.50467085,3112.1,3111.8,0.00431571]
[1642643750000,1.52698476,3112.2,3111.8,0.00431571]
[1642643750001,0.1285,3112.2,3111.8,0.00431571]
[1642643750201,1.2048,3112.4,3111.9,0.80348]
[1642643750401,0.1285,3112.5,3111.9,1.10348]
[1642643750609,1.6069692,3112.2,3112.0,0.00317886]
[1642643751005,1.6069692,3112.2,3111.5,0.00602098]
[1642643751006,1.16501314,3112.0,3111.5,0.00602098]
[1642643751208,1.96845754,3112.0,3111.5,0.00602098]
[1642643751408,1.96845754,3112.0,3111.6,1.60688]
[1642643752006,0.8034444,3112.0,3111.6,1.60688]
[1642643753351,1.24729643,3111.9,3111.6,1.60688]
[1642643753551,2.05080323,3111.9,3111.6,1.60688]
[1642643754155,1.24729643,3111.9,3111.6,1.60688]
[1642643759005,0.8034797,3112.0,3111.6,1.60688]
[1642643759203,2.73775028,3111.9,3111.6,1.60688]
[1642643759403,1.35797685,3112.2,3111.6,1.60688]
[1642643759605,0.8034807,3112.0,3111.6,1.60688]
[1642643759805,2.73774535,3111.9,3111.6,1.60688]
[1642643760045,2.73774535,3111.8,3111.5,0.80962098]
[1642643760245,1.35797685,3112.2,3111.5,0.00602098]
[1642643760246,2.73774535,3111.7,3111.5,0.00602098]
[1642643760447,2.67245942,3112.1,3111.6,0.00545255]
[1642643760650,1.6072165,3112.0,3111.4,0.0065894]
[1642643760853,0.8036,3111.8,3111.4,0.0065894]
[1642643761150,1.4448886,3111.4,3111.2,0.00772625]
[1642643761554,1.4448886,3111.4,3111.1,0.00829467]
[1642643761752,1.4448886,3111.4,3111.0,0.00886309]
[1642643761954,2.2485886,3111.4,3110.9,1.62760937]
[1642643762152,3.0522876,3111.4,3110.9,0.00943152]
[1642643762352,3.0522876,3111.4,3111.0,0.00886309]
[1642643762353,2.2485876,3111.4,3111.0,0.00886309]
[1642643762552,2.2485876,3111.4,3111.0,0.80371]
[1642643762953,2.2485876,3111.4,3111.1,0.00829467]
[1642643763810,2.5393038,3111.8,3111.1,0.81190467]
[1642643763811,1.6071838,3111.8,3111.1,0.81190467]
[1642643764012,1.6071838,3111.8,3111.1,0.94040467]
[1642643764013,0.8035516,3111.6,3111.1,0.94040467]
[1642643764213,0.8035516,3111.6,3111.2,1.61478625]
[1642643764509,0.8035516,3111.6,3111.3,0.00715782]
[1642643764913,1.36017869,3111.7,3111.4,1.3574091]
[1642643765114,1.36017869,3111.7,3111.4,2.1609391]
[1642643765318,1.36017869,3111.7,3111.5,0.00602098]
[1642643766121,1.48867869,3111.7,3111.5,0.00602098]
[1642643766319,2.29236869,3111.7,3111.2,0.00772625]
[1642643766521,0.8036944,3111.6,3111.2,0.00772625]
[1642643770086,0.1285,3111.5,3111.2,0.00772625]
[1642643770282,0.4285,3111.5,3111.2,0.00772625]
[1642643770482,1.2697834,3111.4,3111.2,0.00772625]
[1642643770679,1.2697834,3111.4,3111.0,0.00886309]
[1642643770680,0.1285,3111.3,3111.0,0.00886309]
[1642643770882,1.39560184,3111.2,3111.0,0.00886309]
[1642643771080,0.93235,3111.1,3111.0,0.00886309]
[1642643771306,0.93235,3111.1,3110.4,1.63045148]
[1642643771307,0.4285,3111.1,3110.4,1.63045148]
[1642643771507,0.1285,3111.1,3110.5,1.6075]
[1642643771721,0.1285,3111.1,3110.5,1.61920521]
[1642643771910,0.1285,3111.1,3110.6,0.01113679]
[1642643772707,1.36978377,3110.9,3110.6,0.01113679]
[1642643772909,2.17361377,3110.9,3110.6,0.01113679]
[1642643773108,3.75561377,3110.9,3110.6,0.01113679]
[1642643773311,3.75561377,3110.9,3110.4,0.01227363]
[1642643773509,0.466,3110.8,3110.3,0.01284206]
[1642643773711,0.1285,3110.7,3110.3,0.01284206]
[1642643774010,4.25053958,3110.6,3110.3,0.01284206]
[1642643774207,0.1285,3110.5,3110.3,0.01284206]
[1642643774808,1.1285,3110.5,3110.3,0.01284206]
[1642643775054,0.3,3110.4,3110.3,0.01284206]
[1642643775257,5.4785,3110.4,3110.3,0.01284206]
[1642643775856,0.4285,3110.4,3110.3,0.01284206]
[1642643776057,1.23261,3110.4,3110.3,0.01284206]
[1642643777455,3.68261,3110.4,3110.3,0.01284206]
[1642643778805,1.23261,3110.4,3110.3,0.01284206]
[1642643779404,3.58261,3110.4,3110.3,0.01284206]
[1642643779608,4.58261,3110.4,3110.3,0.01284206]
[1642643779807,5.04861,3110.4,3110.3,0.01284206]
[1642643780711,0.80422,3110.0,3109.1,0.01966314]
[1642643780912,0.466,3109.9,3109.1,0.01966314]
[1642643781514,1.41311226,3109.3,3109.1,0.01966314]
[1642643781911,4.24359151,3109.3,3109.1,0.01966314]
[1642643782114,4.24359151,3109.3,3109.0,0.0073895]
[1642643782559,3.43932151,3109.3,3109.0,0.0073895]
[1642643782958,1.2365,3109.8,3109.0,0.0073895]
[1642643783159,0.1285,3110.1,3109.1,0.1285]
[1642643783358,2.0740296,3110.2,3109.1,2.93239057]
[1642643783559,2.0740296,3110.2,3109.2,0.00625266]
[1642643783959,1.33152512,3109.8,3109.5,1.35330761]
[1642643784160,1.33152512,3109.8,3109.2,0.00625266]
[1642643784161,1.31899794,3109.7,3109.2,0.00625266]
[1642643784359,1.31899794,3109.7,3109.6,0.00397896]
[1642643784559,1.31899794,3109.7,3109.2,0.00625266]
[1642643784761,1.31899794,3109.7,3109.1,0.00682108]
[1642643785359,1.31899794,3109.7,3109.3,1.5485562]
[1642643785758,1.31899794,3109.7,3109.4,0.00511581]
[1642643787207,1.31899794,3109.7,3109.1,0.00682108]
[1642643787415,0.8041465,3109.6,3109.1,0.00682108]
[1642643788712,0.9326465,3109.6,3109.1,0.00682108]
[1642643791157,0.9326465,3109.6,3109.0,0.0073895]
[1642643791960,0.80423,3109.5,3109.0,0.0073895]
[1642643792161,0.1285,3109.4,3109.0,0.0073895]
[1642643792361,1.2703433,3109.3,3109.0,0.0073895]
[1642643792563,0.1285,3109.2,3108.5,0.01023162]
[1642643793903,2.5414827,3109.2,3108.5,0.01023162]
[1642643794101,0.80433,3109.1,3108.5,0.01023162]
[1642643794300,2.5414827,3109.2,3108.5,0.01023162]
[1642643795207,1.25066838,3109.4,3108.6,0.1285]
[1642643795402,1.31899794,3109.7,3108.6,0.1285]
[1642643795403,0.8041462,3109.5,3108.6,0.1285]
[1642643795602,0.8041462,3109.5,3108.7,0.00909477]
[1642643795901,0.8041462,3109.5,3108.8,0.1285]
[1642643796301,0.8041462,3109.5,3108.9,0.81207793]
[1642643796801,3.30967794,3109.7,3109.0,0.0073895]
[1642643796802,1.49817524,3109.1,3109.0,0.0073895]
[1642643797201,1.49817524,3109.1,3108.8,0.00852635]
[1642643797458,1.49817524,3109.1,3108.8,0.81268635]
[1642643797862,1.49817524,3109.1,3108.9,0.00795793]
[1642643798061,0.8041239,3109.5,3108.9,0.00795793]
[1642643798261,2.63399794,3109.7,3108.9,0.00795793]
[1642643798665,2.63399794,3109.7,3108.9,0.00139103]
[1642643799061,2.63399794,3109.7,3109.0,0.0073895]
[1642643799264,3.43809334,3109.7,3109.1,0.80408]
[1642643799463,1.2434755,3109.5,3109.1,0.80547103]
[1642643799663,1.2434755,3109.5,3109.2,0.00625266]
[1642643799867,1.2434755,3109.5,3109.2,0.00764371]
[1642643800264,1.2434755,3109.5,3109.3,0.00568423]
[1642643800468,1.2434755,3109.5,3109.3,0.00707528]
[1642643800866,1.2434755,3109.5,3109.4,0.00511581]
[1642643801064,1.2434755,3109.5,3109.4,0.00650686]
[1642643803112,1.31899794,3109.7,3109.4,0.00650686]
[1642643803308,2.5406774,3110.1,3109.4,0.00650686]
[1642643803309,4.5869914,3110.0,3109.4,0.00650686]
[1642643803510,0.8039914,3110.0,3109.5,0.00454739]
[1642643803709,0.8039914,3110.0,3109.5,0.00593844]
[1642643804108,0.8039914,3110.0,3109.6,0.00397896]
[1642643804308,1.5181133,3109.8,3109.6,0.00537001]
[1642643804709,1.5181133,3109.8,3109.7,0.00341054]
[1642643804953,1.5181133,3109.8,3109.7,0.00480159]
[1642643806460,1.8181133,3109.8,3109.7,0.00480159]
[1642643807061,1.8181133,3109.8,3109.7,0.00377066]
[1642643807962,1.5181133,3109.8,3109.7,0.00377066]
[1642643815565,4.25785338,3109.8,3109.7,0.00377066]
[1642643815966,1.5181133,3109.8,3109.7,0.00377066]
[1642643820860,2.14505637,3109.9,3109.7,0.00377066]
[1642643821062,1.2804,3110.2,3109.7,0.00377066]
[1642643821063,0.8040031,3110.0,3109.7,0.00377066]
[1642643821266,8.3188,3110.6,3109.8,0.13031119]
[1642643821267,8.24557051,3110.6,3109.8,0.13031119]
[1642643821465,8.24557051,3110.6,3109.8,0.13170224]
[1642643821466,2.73923171,3110.5,3109.8,0.13170224]
[1642643821667,0.00159936,3110.4,3109.9,0.00124276]
[1642643821867,0.00159936,3110.4,3109.9,0.00263381]
[1642643822067,0.00103093,3110.3,3109.9,0.00263381]
[1642643822267,0.00103093,3110.3,3110.0,0.1285]
[1642643822468,0.00103093,3110.3,3110.0,0.92799105]
[1642643823268,0.00103093,3110.3,3110.0,1.73182105]
[1642643823469,0.00103093,3110.3,3110.0,2.53561105]
[1642643823720,0.00103093,3110.3,3110.0,1.60332105]
[1642643823919,0.00103093,3110.3,3110.0,0.80522105]
[1642643824116,2.74010523,3110.3,3110.0,0.80522105]
[1642643824316,2.74010523,3110.3,3110.0,0.00139105]
[1642643826320,2.54481176,3110.2,3110.0,0.00139105]
[1642643826527,2.7390743,3110.1,3110.0,0.00139105]
[1642643826718,2.8675743,3110.1,3110.0,0.00139105]
[1642643826919,2.8175743,3110.1,3110.0,0.00139105]
[1642643827562,3.6216343,3110.1,3110.0,0.00139105]
[1642643827960,3.9216343,3110.1,3110.0,0.00139105]
[1642643828161,3.6216343,3110.1,3110.0,0.00139105]
[1642643828363,2.8175743,3110.1,3110.0,0.00139105]
[1642643828562,2.6890743,3110.1,3110.0,0.00139105]
[1642643828960,1.23293093,3110.3,3110.0,0.00139105]
[1642643829163,0.1285,3110.2,3110.0,0.00139105]
[1642643829562,0.9325341,3110.2,3110.0,0.00139105]
[1642643830062,5.08538352,3110.1,3110.0,0.00139105]
[1642643830262,5.67988352,3110.1,3110.0,0.00139105]
[1642643830464,6.67988352,3110.1,3110.0,0.00139105]
[1642643832028,6.97988352,3110.1,3110.0,0.00139105]
[1642643832229,6.67988352,3110.1,3110.0,0.00139105]
[1642643833631,6.97988352,3110.1,3110.0,0.00139105]
[1642643834635,6.67988352,3110.1,3110.0,0.00139105]
[1642643835057,6.97988352,3110.1,3110.0,0.00139105]
[1642643836057,5.05,3110.0,3109.9,0.00124276]
[1642643836255,5.05,3110.0,3109.9,0.00263395]
[1642643836256,10.20397337,3110.0,3109.9,0.00263395]
[1642643836455,10.20397337,3110.0,3109.9,0.00139119]
[1642643836657,5.15397337,3110.0,3109.9,0.00263395]
[1642643837058,2.39872,3110.0,3109.9,0.00263395]
[1642643837660,1.39872,3110.0,3109.9,0.00263395]
[1642643837861,2.27022,3110.0,3109.9,0.00263395]
[1642643838061,1.27022,3110.0,3109.9,0.00263395]
[1642643839107,3.71501935,3110.0,3109.9,0.00263395]
[1642643839307,1.27022,3110.0,3109.9,0.00263395]
[1642643839508,3.75049308,3110.0,3109.9,0.00263395]
[1642643840514,1.39872,3110.0,3109.9,0.00263395]
[1642643841115,2.27022,3110.0,3109.9,0.00263395]
[1642643841315,1.27022,3110.0,3109.9,0.00263395]
[1642643843760,0.466,3110.0,3109.9,0.00263395]
[1642643844162,0.766,3110.0,3109.9,0.00263395]
[1642643844461,0.466,3110.0,3109.9,0.00263395]
[1642643847211,3.20564599,3110.0,3109.9,0.00263395]
[1642643849112,2.73964599,3110.0,3109.9,0.00263395]
[1642643851263,1.23293093,3110.3,3109.9,0.00263395]
[1642643851464,2.73941905,3110.2,3109.9,0.00263395]
[1642643852464,2.38068163,3110.5,3109.9,0.00263395]
[1642643852662,2.73940836,3110.4,3109.9,0.00263395]
[1642643852865,2.74100772,3110.4,3109.9,0.00263395]
[1642643856015,2.86950772,3110.4,3109.9,0.00263395]
[1642643856212,2.73940836,3110.3,3109.9,0.00263395]
[1642643856614,0.00159936,3110.4,3109.9,0.00263395]
[1642643856813,2.74096629,3110.4,3109.9,0.00263395]
[1642643857014,2.74096629,3110.4,3109.9,4.28415987]
[1642643857216,0.00065655,3110.4,3110.0,1.30242254]
[1642643857460,0.00065655,3110.4,3110.0,2.81173099]
[1642643857666,0.00065655,3110.4,3110.1,2.40974007]
[1642643857964,0.00065655,3110.4,3110.2,0.42476336]
[1642643858164,0.00065655,3110.4,3110.2,0.72615472]
[1642643858565,0.00065655,3110.4,3110.2,3.13712472]
[1642643861227,0.00065655,3110.4,3110.2,3.78009142]
[1642643861818,0.00065655,3110.4,3110.3,6.05]
[1642643862018,0.00065655,3110.4,3110.3,6.17989143]
[1642643862825,0.00065655,3110.4,3110.3,1.12989143]
[1642643863226,0.00065655,3110.4,3110.3,1.29139143]
[1642643863526,0.00065655,3110.4,3110.3,0.12989143]
[1642643863929,0.00065655,3110.4,3110.3,0.00139143]
[1642643877326,1.2078,3110.9,3110.6,2.26545217]
[1642643877528,5.11039648,3111.1,3110.6,2.2668436]
[1642643877727,5.11039648,3111.1,3110.6,0.80517143]
[1642643877728,0.00170527,3110.7,3110.6,0.80517143]
[1642643882970,2.74066417,3110.7,3110.6,0.80517143]
[1642643883570,0.00170527,3110.7,3110.6,0.80517143]
[1642643883816,0.00170527,3110.7,3110.6,1.33257251]
[1642643884017,0.00170527,3110.7,3110.6,1.49603098]
[1642643884215,0.00170527,3110.7,3110.6,5.24603098]
[1642643884614,0.00170527,3110.7,3110.6,5.24603096]
[1642643886016,0.00170527,3110.7,3110.6,8.50425547]
[1642643886819,0.00170527,3110.7,3110.6,4.75425547]
[1642643887219,0.00170527,3110.7,3110.6,2.29966096]
[1642643887472,0.00170527,3110.7,3110.6,2.26470249]
[1642643887863,0.00170527,3110.7,3110.6,4.60213131]
[1642643888263,0.00170527,3110.7,3110.6,5.90213131]
[1642643888665,0.00170527,3110.7,3110.6,3.56470249]
[1642643890467,3.1294,3111.6,3110.8,0.80355]
[1642643890667,3.1294,3111.6,3111.2,0.6428235]
[1642643890869,0.00341054,3111.3,3111.2,0.64421487]
[1642643891330,2.74342424,3111.6,3111.2,0.64421487]
[1642643891523,0.00511581,3111.6,3111.2,0.64421487]
[1642643891727,0.00454738,3111.5,3111.2,0.64421487]
[1642643891927,0.00454738,3111.5,3111.3,1.38095694]
[1642643892127,0.00397896,3111.4,3111.3,1.38234831]
[1642643892527,0.00397896,3111.4,3111.3,2.98943831]
[1642643893131,0.00397896,3111.4,3111.3,3.28943831]
[1642643893332,0.00397896,3111.4,3111.3,6.90576849]
[1642643896573,0.00397896,3111.4,3111.3,7.33426849]
[1642643896876,0.02,3112.3,3111.3,7.64730774]
[1642643897072,2.73779276,3112.2,3111.7,0.6426774]
[1642643897274,2.74234015,3112.2,3111.8,4.02333905]
[1642643897572,0.00454739,3112.2,3111.9,0.3]
[1642643897771,0.00454739,3112.2,3111.9,0.12989122]
[1642643897972,0.00454739,3112.2,3111.9,0.30139122]
[1642643898811,0.00454739,3112.2,3111.9,0.80477122]